Cogmind - Beta 13 @@@ ROGUE MODE // 2024.04.06 @ 15:23:39 Player: triplej Result: Destroyed by L-31 Rogue with Katana Performance ------------- Evolutions (2) 1000 Regions Visited (5) 1000 Robots Destroyed (19) 95 Value Destroyed (715) 715 Prototype IDs (1) 20 Alien Tech Used (0) 0 Bonus (231) 231 TOTAL SCORE: 3061 Bonus ------- Follower Combat Kills 231 Cogmind --------- Core Integrity 0/550 Matter 290/300 Energy 280/280 System Corruption 0% Temperature Cool (27) Movement Core (2550) Ox50 Location -8/Materials Parts ------- > --- POWER (2) -------- Heavy Ion Engine > --- PROPULSION (3) --- (None) > --- UTILITY (4) ------ Cargo Storage Unit Salvage Targeting Computer Targeting Computer > --- WEAPON (2) ------- Maul > --- INVENTORY (30) --- Backup Power I Improved Aluminum Leg Particle Charger Rocket Launcher Rocket Launcher Improved Datajack Peak State ------------ > --- POWER ------------ Backup Power I Heavy Ion Engine > --- PROPULSION ------- Aluminum Leg Carbon-fiber Leg Carbon-fiber Leg > --- UTILITY ---------- Cargo Storage Unit Salvage Targeting Computer Targeting Computer > --- WEAPON ----------- Heavy Particle Cannon Maul > --- INVENTORY -------- Backup Power I Improved Aluminum Leg Particle Charger Rocket Launcher Rocket Launcher Improved Datajack [Rating: 22] Favorites ----------- Power Ion Engine Engine Ion Engine Power Core Fission Core Propulsion Aluminum Leg Treads Light Treads Leg Aluminum Leg Wheel Compact Wheel Flight Unit Cesium-ion Thruster Utility Salvage Targeting Computer Device Particle Charger Storage Medium Storage Unit Processor Salvage Targeting Computer Protection Light Armor Plating Weapon Assault Rifle Energy Gun EM Pulse Gun Energy Cannon Heavy Particle Cannon Ballistic Gun Assault Rifle Launcher Rocket Launcher Impact Weapon Maul Special Melee Weapon Improved Datajack Build | -11 -10 -10 -9 -9 -8 ------- Run | Yrd Mat Min Mat Sto Mat Slots Evolved 4 | . . . 2 . 2 Power 1 | . . . 1 . . Propulsion 1 | . . . . . 1 Utility 2 | . . . 1 . 1 Weapon . | . . . . . . Parts Attached 50 | 8 2 3 11 3 23 Power 9 | 1 . 1 1 2 4 Engine 7 | 1 . . 1 2 3 Core 2 | . . 1 . . 1 Reactor . | . . . . . . Propulsion 19 | 4 . 2 4 . 9 Treads 2 | 2 . . . . . Leg 10 | 1 . 2 2 . 5 Wheel 4 | 1 . . . . 3 Hover . | . . . . . . Flight 3 | . . . 2 . 1 Utility 10 | 1 1 . 4 1 3 Device 1 | . . . . . 1 Storage 5 | 1 . . 3 . 1 Processor 3 | . 1 . . 1 1 Hackware . | . . . . . . Protection 1 | . . . 1 . . Artifact . | . . . . . . Weapon 12 | 2 1 . 2 . 7 Energy Gun 2 | . . . 1 . 1 Energy Cannon 1 | . . . . . 1 Ballistic Gun 4 | 2 . . 1 . 1 Ballistic Cannon . | . . . . . . Launcher 3 | . 1 . . . 2 Special Weapon . | . . . . . . Impact Weapon 1 | . . . . . 1 Slashing Weapon . | . . . . . . Piercing Weapon . | . . . . . . Special Melee Weapon 1 | . . . . . 1 Unidentified Prototypes 1 | . . . . . 1 Parts Lost 24 | . . 6 . 1 17 Power 5 | . . 1 . . 4 Propulsion 11 | . . 2 . . 9 Utility 2 | . . 1 . . 1 Weapon 6 | . . 2 . 1 3 Highest Loss Streak 7 | . . 6 . 1 7 To Critical Strikes . | . . . . . . Average Slot Usage (%) 79 | . 92 69 78 94 74 Engine 9 | . 14 7 7 12 8 Core 4 | . . 3 11 9 1 Treads 3 | . 28 14 . . . Leg 16 | . . 7 22 22 16 Wheel 3 | . . . . . 6 Storage 10 | . 14 14 14 11 9 Processor 10 | . 6 7 . 10 14 Protection 3 | . . . 7 11 . Energy Gun 2 | . . . 7 6 . Energy Cannon 2 | . . . . . 4 Ballistic Gun 5 | . 14 7 7 11 . Launcher 2 | . 13 6 . . 2 Impact Weapon 3 | . . . . . 7 Naked Turns . | . . . . . . Heaviest Build 158 | 14 15 15 45 30 158 Greatest Support 48 | 40 40 40 20 20 48 Greatest Overweight (x) 49 | . . 2 2 1 49 Average Overweight (x) 1 | . . . 1 1 2 Largest Inventory Capacity 30 | 8 8 8 15 10 30 Average Capacity 14 | 7 8 8 12 10 20 Most Carried 9 | 8 8 7 6 9 8 Average Carried 5 | 5 7 5 3 6 5 Final Capacity 30 | 8 8 8 10 10 30 Final Carried 7 | 6 6 4 5 7 6 Class Distribution -------------------- 67% | Mutant 24% | Hauler-Mutant 7% | Commander-Mutant Dominant Class ---------------- Mutant | -10/Materials Mutant | -10/Mines Mutant | -9/Materials Mutant | -9/Storage Hauler-Mutant | -8/Materials Resources | -11 -10 -10 -9 -9 -8 ----------- Run | Yrd Mat Min Mat Sto Mat Matter Collected 794 | 193 40 125 . 144 292 Remotely . | . . . . . . Salvage Created 601 | . 40 66 . 40 455 Parts 25 | . 6 4 . 2 13 Haulers Intercepted . | . . . . . . Recyclers Shooed . | . . . . . . Parts Field Recycled . | . . . . . . Retrieved Matter . | . . . . . . Parts Self-Destructed . | . . . . . . Prevented . | . . . . . . Kills | -11 -10 -10 -9 -9 -8 ------- Run | Yrd Mat Min Mat Sto Mat Combat Hostiles Destroyed 16 | . 3 2 . 1 10 Melee 3 | . . . . . 3 Guns 4 | . . . . 1 3 Cannons 2 | . . . . . 2 AOE 6 | . 3 2 . . 1 Classes Destroyed 7 | . 2 1 . . 4 Worker 1 | . . . . . 1 Mechanic 1 | . . . . . 1 Watcher 1 | . 1 . . . . Swarmer 3 | . 3 . . . . Grunt 10 | . . 2 . 1 7 Sentry 2 | . . . . . 2 Hunter 1 | . . . . . 1 Best Kill Streak 4 | . 4 2 . 1 4 Combat Bots Only 4 | . 3 2 . 1 4 Max Kills in Single Turn 3 | . 3 2 . 1 1 Gunslinging . | . . . . . . Exploded 3 | . 3 2 . . 1 Melee 1 | . . . . . 1 Uniques/NPCs Destroyed . | . . . . . . Combat | -11 -10 -10 -9 -9 -8 -------- Run | Yrd Mat Min Mat Sto Mat Hostile Shots Fired 248 | . 8 20 . 38 182 Missed 68 | . 2 3 . 15 48 Damage Taken 3466 | . 65 879 . 280 2242 Core 810 | . 17 207 . 14 572 Absorbed by Shields . | . . . . . . Core Remaining (%) 68 | 100 . 10 . 96 . Volleys Fired 42 | . 2 4 . 3 33 Largest 2 | . 2 2 . 2 2 Hottest 75 | . 50 50 . 60 75 Shots Fired 56 | . 4 6 . 6 40 Gun 33 | . 2 4 . 6 21 Cannon 11 | . . . . . 11 Launcher 12 | . 2 2 . . 8 Special . | . . . . . . Kinetic 27 | . 2 4 . 3 18 Thermal 11 | . . . . . 11 Explosive 12 | . 2 2 . . 8 Electromagnetic 6 | . . . . 3 3 Robot Hit Streak 8 | . 1 3 . 4 8 Robot Miss Streak 3 | . 1 1 . 2 3 Penetration Max . | . . . . . . Secondary Targets 1 | . . . . . 1 Max Gunslinging Chain 1 | . . . . . 1 Shots Hit Robots 48 | . 2 4 . 4 38 Core Hits 32 | . 5 4 . 2 21 Critical Kills 2 | . . . . . 2 Critical Parts Destroyed 4 | . . . . . 4 Critical Strikes 7 | . . . . . 7 Smash 7 | . . . . . 7 Melee Attacks 15 | . . . . . 15 Impact 11 | . . . . . 11 Slashing . | . . . . . . Piercing . | . . . . . . Sneak Attacks 1 | . . . . . 1 Combat Hostiles . | . . . . . . Follow-up Attacks . | . . . . . . Damage Inflicted 1579 | . 160 152 . 56 1211 Guns 288 | . . 27 . 56 205 Cannons 200 | . . . . . 200 Explosions 723 | . 160 125 . . 438 Melee 368 | . . . . . 368 Ramming . | . . . . . . Kinetic 227 | . . 27 . 29 171 Thermal 238 | . . 38 . . 200 Explosive 685 | . 160 87 . . 438 Electromagnetic 61 | . . . . 27 34 Impact 368 | . . . . . 368 Slashing . | . . . . . . Piercing . | . . . . . . Highest Corruption 1 | . . 1 . . . Average Corruption 1 | . . 1 . . . Corruption Purged . | . . . . . . Corruption Blocked . | . . . . . . Overload Shots . | . . . . . . Overflow Damage 174 | . . . . . 174 Projectiles . | . . . . . . Explosions 1 | . . . . . 1 Melee 173 | . . . . . 173 Knockbacks . | . . . . . . Impact . | . . . . . . Kinetic . | . . . . . . Secondary . | . . . . . . Self-Inflicted Damage 107 | . 8 30 . . 69 Shots 6 | . 1 2 . . 3 Rammed . | . . . . . . Targets Rammed . | . . . . . . Kicked . | . . . . . . Crushed . | . . . . . . Highest Temperature 230 | . . 20 . 24 230 Average Temperature 58 | . . 16 . 14 68 Received Heat Transfer 990 | . . . . 99 891 Effects 1 | . . . . . 1 Energy Bleed 1 | . . . . . 1 Siege Activations . | . . . . . . Robots Corrupted . | . . . . . . Combat Hostiles . | . . . . . . Parts Fried 4 | . . . . . 4 Impact Corruptions 5 | . . . . . 5 Robots Melted . | . . . . . . Combat Hostiles . | . . . . . . Parts Melted . | . . . . . . Heat Transferred 346 | . . 50 . . 296 Parts Sabotaged . | . . . . . . Parts Stolen . | . . . . . . Parts Stripped . | . . . . . . Power Chain Reactions . | . . . . . . Alert | -11 -10 -10 -9 -9 -8 ------- Run | Yrd Mat Min Mat Sto Mat Peak Influence 312 | . 109 179 83 312 174 Initial 53 | . . 42 38 34 53 Average 81 | . 71 134 70 123 78 Maximum Alert Level 1 | . . . . 1 . Low Security (%) 95 | 100 100 100 100 76 100 Level 1 4 | . . . . 23 . Level 2 . | . . . . . . Level 3 . | . . . . . . Level 4 . | . . . . . . Level 5 . | . . . . . . High Security . | . . . . . . Max Security . | . . . . . . Squads Dispatched 7 | . . . 1 1 5 Investigation 1 | . . . 1 . . Extermination . | . . . . . . Reinforcement 3 | . . . . 1 2 Assault . | . . . . . . Garrison 3 | . . . . . 3 Intercept . | . . . . . . Searches Triggered . | . . . . . . Construction Impeded 1 | . . . . . 1 Haulers Reinforced . | . . . . . . Active Scanning Responses . | . . . . . . Cargo Convoy Interrupts . | . . . . . . Stealth | -11 -10 -10 -9 -9 -8 --------- Run | Yrd Mat Min Mat Sto Mat Distress Signals 7 | . . . 5 1 1 Communications Jammed . | . . . . . . Distress Signals . | . . . . . . Times Spotted 53 | . 4 9 3 14 23 Peak Tracking Total 6 | . 3 5 2 5 6 Tactical Retreats 5 | . . . 1 . 4 Traps | -11 -10 -10 -9 -9 -8 ------- Run | Yrd Mat Min Mat Sto Mat Traps Triggered 2 | . . . . 2 . Indirectly . | . . . . . . Trap Hack Attempts . | . . . . . . Triggered . | . . . . . . Disarmed . | . . . . . . Reprogrammed . | . . . . . . Reused . | . . . . . . Traps Extracted . | . . . . . . Installed . | . . . . . . Triggered . | . . . . . . Machines | -11 -10 -10 -9 -9 -8 ---------- Run | Yrd Mat Min Mat Sto Mat Machines Disabled 6 | . . 4 . . 2 Max in Single Turn 4 | . . 4 . . 2 Machines Repaired . | . . . . . . Machines Dismantled . | . . . . . . Machines Sabotaged . | . . . . . . Overloaded Fab Kills . | . . . . . . Hacking | -11 -10 -10 -9 -9 -8 --------- Run | Yrd Mat Min Mat Sto Mat Machines Accessed 1 | . . . . 1 . Terminals 1 | . . . . 1 . Fabricators . | . . . . . . Repair Stations . | . . . . . . Recycling Units . | . . . . . . Scanalyzers . | . . . . . . Garrison Access . | . . . . . . Total Hacks 2 | . . . . 2 . Successful 1 | . . . . 1 . Failed 1 | . . . . 1 . Catastrophic . | . . . . . . Database Lockouts . | . . . . . . Manual . | . . . . . . Terminals 2 | . . . . 2 . Fabricators . | . . . . . . Repair Stations . | . . . . . . Recycling Units . | . . . . . . Scanalyzers . | . . . . . . Garrison Access . | . . . . . . Terminal Hacks 1 | . . . . 1 . Open Door 1 | . . . . 1 . Fabricator Hacks . | . . . . . . Repair Station Hacks . | . . . . . . Recycling Unit Hacks . | . . . . . . Scanalyzer . | . . . . . . Garrison Access Hacks . | . . . . . . Unauthorized Hacks . | . . . . . . Terminals . | . . . . . . Fabricators . | . . . . . . Repair Stations . | . . . . . . Recycling Units . | . . . . . . Scanalyzers . | . . . . . . Garrison Access . | . . . . . . Data Cores Recovered . | . . . . . . Used . | . . . . . . Hacking Detections 1 | . . . . 1 . Full Trace Events . | . . . . . . Feedback Events . | . . . . . . Feedback Blocked . | . . . . . . Robot Schematics Acquired . | . . . . . . Robots Built . | . . . . . . Authchips . | . . . . . . Time . | . . . . . . Total Robot Build Rating . | . . . . . . Part Schematics Acquired . | . . . . . . Parts Built . | . . . . . . Authchips . | . . . . . . Time . | . . . . . . Total Part Build Rating . | . . . . . . Parts Repaired . | . . . . . . Time . | . . . . . . Parts Recycled . | . . . . . . Recycled Matter . | . . . . . . Retrieved Matter . | . . . . . . Retrieved Components . | . . . . . . Parts Scanalyzed . | . . . . . . Part Schematics Acquired . | . . . . . . Parts Damaged . | . . . . . . Bothacking | -11 -10 -10 -9 -9 -8 ------------ Run | Yrd Mat Min Mat Sto Mat Used RIF Installer . | . . . . . . Robots Hacked 1 | . . . . . 1 Non-combat . | . . . . . . Combat 1 | . . . . . 1 Robot Hacks Applied 1 | . . . . . 1 parse_system 1 | . . . . . 1 Relay Couplers Released . | . . . . . . Fabnet Peak Effective % . | . . . . . . Robots Rewired . | . . . . . . Allies Hacked . | . . . . . . Hacks Repelled . | . . . . . . Allies | -11 -10 -10 -9 -9 -8 -------- Run | Yrd Mat Min Mat Sto Mat Total Allies 12 | . . 2 . 10 . Largest Group 10 | . . 2 . 10 2 Highest-Rated Group 88 | . . 50 . 88 16 Highest-Rated Ally 31 | . . 31 . 16 8 Total Orders . | . . . . . . Ally Attacks 69 | . . 5 . 61 3 Total Damage 584 | . . 64 . 520 . Kills 11 | . . 1 . 10 . Allies Corrupted . | . . . . . . Allies Melted . | . . . . . . Intel | -11 -10 -10 -9 -9 -8 ------- Run | Yrd Mat Min Mat Sto Mat Robot Analysis Total . | . . . . . . Derelict Logs Recovered . | . . . . . . Drone Launches . | . . . . . . Drone Recoveries . | . . . . . . Exploration | -11 -10 -10 -9 -9 -8 ------------- Run | Yrd Mat Min Mat Sto Mat Turns Passed 2511 | 292 151 204 292 480 1092 Spaces Moved 1126 | 105 87 132 142 226 434 Core 77 | 19 . 30 . . 28 Treads 201 | 53 87 61 . . . Legs 646 | 29 . 41 142 226 208 Wheels 202 | 4 . . . . 198 Hover . | . . . . . . Flight . | . . . . . . Fastest Speed 50 | 50 160 100 120 190 100 Average Speed 186 | 126 160 135 190 190 217 Slowest Speed 2500 | 160 160 160 260 190 2500 Overloaded Moves . | . . . . . . Propulsion Burnouts . | . . . . . . Robots Hopped . | . . . . . . Cave-ins Triggered 1 | . . 1 . . . Exploration Rate (%) 27 | 11 25 37 11 49 29 Regions Visited 5 Branch Regions 2 Pre-discovered Areas . | . . . . . . Known Exits Taken . | . . . . . . Unknown Exits Taken 5 | 1 1 1 1 1 . Scrap Searched . | . . . . . . Spaces Dug . | . . . . . . Terrain Destroyed 70 | . 17 27 . . 26 Melee . | . . . . . . Projectile 3 | . . . . . 3 AOE 67 | . 17 27 . . 23 Terrain Rammed . | . . . . . . Walls Destroyed . | . . . . . . Machines Disabled . | . . . . . . Actions | -11 -10 -10 -9 -9 -8 --------- Run | Yrd Mat Min Mat Sto Mat Total 1463 | 261 95 150 163 273 521 Wait 171 | 141 . 11 . 19 . Move 1121 | 104 86 131 141 225 434 Hop . | . . . . . . Pick Up 39 | 8 3 1 8 8 11 Fast Attach 11 | 4 . . . . 7 Attach 24 | 2 1 3 6 1 11 Detach 2 | . . . . . 2 Swap 15 | 2 1 . 5 2 5 Drop 13 | . 2 . 3 5 3 Fire 42 | . 2 4 . 3 33 Melee 15 | . . . . . 15 Ram . | . . . . . . Kick . | . . . . . . Crush . | . . . . . . Escape Stasis 10 | . . . . 10 . Rewire . | . . . . . . Trap . | . . . . . . Miscellaneous . | . . . . . . Route ------- -11/Scrapyard -10/Materials -10/Mines -9/Materials -9/Storage -8/Materials History --------- Turn | Location | Event 6 | -11/Scrapyard | Discovered new exit (range 15) 293 | -11/Scrapyard | Entered Materials 327 | -10/Materials | Build established: Mutant 405 | -10/Materials | Discovered new exit (range 11) 444 | -10/Materials | Entered Mines 509 | -10/Mines | Assembled infested the area 514 | -10/Mines | Assisted by a Guerilla fighting off Assembled 548 | -10/Mines | Crushed by falling debris 557 | -10/Mines | Core integrity fell below 50% 560 | -10/Mines | Core integrity fell below 20% 577 | -10/Mines | Lost 3 allies 590 | -10/Mines | Lost 6 parts (1p2n1u2w) 642 | -10/Mines | Discovered new exit (range 5) 648 | -10/Mines | Entered Materials 648 | -9/Materials | Evolved 2 slots: Power x1, Utility x1 825 | -9/Materials | Discovered new exit (range 15) 940 | -9/Materials | Entered Storage 1137 | -9/Storage | Assisted by bots powering up and referring to "LRC-V3" 1253 | -9/Storage | Lost 3 allies 1364 | -9/Storage | Discovered new exit (range 12) 1373 | -9/Storage | Lost 4 allies 1420 | -9/Storage | Entered Materials 1420 | -8/Materials | Accompanied by 2 allies 1420 | -8/Materials | Evolved 2 slots: Propulsion x1, Utility x1 1544 | -8/Materials | Garrison activated, responded to threat 1628 | -8/Materials | Lost 7 parts (2p3n1u1w) 1866 | -8/Materials | Core integrity fell below 50% 1984 | -8/Materials | Lost 3 parts (1p2n) 2203 | -8/Materials | Build established: Hauler-Mutant 2482 | -8/Materials | Core integrity fell below 20% 2512 | -8/Materials | Destroyed by L-31 Rogue with Katana Last Messages --------------- 02129_ Acquired Backup Power I. 02152_ R-06 Scavenger collects Backup Laser I. 02277_ Acquired Prototype Engine. 02278_ Identified Hvy. Ion Engine. 02409_ K-01 Serf cleans the Terminal. 02481_ Critical hit (Burn: +37). 02485_ Slug penetrates Wall. 02491_ Penetrated by Slug. 02498_ Backup Power I severed. 02498_ Backup Power I disintegrated. 02503_ Slug penetrates Wall. 02504_ Hvy. Particle Cannon destroyed. 02506_ Aluminum Leg destroyed. 02506_ Slug penetrates Wall. 02507_ Integration Channel disabled. 02509_ Carbon-fiber Leg destroyed. 02509_ Slug penetrates Wall. 02510_ Critical hit (Burn: +37). 02511_ Carbon-fiber Leg destroyed. 02512_ Critical hit (Burn: +37). Map ----- +----------------------------------------------------+ | ????????????????????????????????????????" ??? | | ????????????????????????????????????????"" ??? | | ????????????????????????????????????????"" ? | | ????????????????????????????????????????"" | | ???????????????????????????????????????? | | ?????????????????????????????????????? " | | ????????????????????????????????????# | | ??????????????????????????????????? | | ??????????????????????????????????? ! % | | ??????????????????????????????????? % | | ????????????????????????? ????????? | | ????????????????????????? ??????????#### ## # | | ??????????????????????### ???????????????????# # | | ?????????????????????? ???????????????????# # | | ?????????????????????? ???????????????????# + | | ?????????????????????? ???????????????????# # | | ??????????????????? ?? ???????????????????# # | | ??????????????????? " #??????????????????# # | | ???????????????????? "" #??????????????????# # | | ???????????????????? "" "??????????????????# # | | ?????????????????"? """ T??????????????????# # | | ?????????????????" "" "??????????????????+ # | | ?????????????????"" """ #??????????????????# # | | ????????????????""" """ #??????????????????# # | | ?????????????# """ """ #################### # | | ?????????????# " @ g | | ?????????????# lg | | ?????????????# k | | ?????????????################h k#############! | | ????????????????????????????# #???????????# | | ????????????????????????????# #???????????## # | | ??????????????##############" #????????????# # | | ??????? #????????????# # | | ??????????????############### " ???????????# # | | ????????????????????????????# # "??????????# # | | ????????????????????????????+ " ?????????# # | | ????????????????????????????# # ????????# # | | ????????????????????????????# # ???????# # | | ????????????????????????????# #?############ # | | ????????????????????????????# | | ????????????????????????????# | | ????????????????????????????# | | ????????????????????????????# ######## ######"## | | ????????????????????????????? #??????#??????# | | ????????????????????????????? #?????????????# | | ????????????????????????????? #?????????????# "" | | ????????????????????????????? ??????????????# "" | | ??????????????????????????????????????????????# "" | | ??????????????????????????????????????????????# "" | | ??????????????????????????????????????????????# "" | +----------------------------------------------------+ Best States ------------- Heat Dissipation 31 Energy Generation 23 Energy Capacity 460 Matter Stores 300 Matter Capacity 300 Sight Range 18 Terrain Scan Density 10 Armor Coverage 150 Evasion (%) 55 Targeting Accuracy 5 Recoil Reduction 2 Particle Charging 15 Salvage Targeting 1 Item Schematics ----------------- None Robot Schematics ------------------ None Fabricated ------------ Nothing Alien Tech Used ----------------- None Achievements -------------- Tank The More The Merrier Challenges ------------ None Game ------ Seed DimensionalMagneticMallet Manual? 0 Play Time 00:28:23 Cumulative 3.5 hours Start 2024.04.06 @ 14:54:02 End 2024.04.06 @ 15:23:39 Sessions 1 Manual Loads 0 Difficulty Rogue Special Mode None Game No. 8 Rogue 3 Adventurer 5 Explorer 0 Win Type - Total 0 Types 0/0/0/0/0/0/0/0/0 Lore% 0 Gallery% 11 Achievement% 10 Wizard Run 0 Options --------- Layout 1 ASCII 0 Keyboard 0 Movement Mouse Keybinds 0 Fullscreen 2 Font 32/Dina Map View 50x35 Zoom Use 0% Tactical HUD 1 Map Filters NONE Filters NONE Steam 1 RUN: fdc3c780-5c31-474e-b56d-347b36effd40